fUSD/lending_fUSD_20240823
["ID","MTS","AMOUNT","RATE_DAILY","PERIOD"]
[335686452,1724429447477,-500.0,0.00010999,2]
[335686453,1724429447487,-500.0,0.00010999,2]
[335686454,1724429447496,-500.0,0.00010999,2]
[335686455,1724429447505,-500.0,0.00010999,2]
[335686456,1724429447515,-500.0,0.00010999,2]
[335686457,1724429447524,-500.0,0.00010999,2]
[335686458,1724429447533,-500.0,0.00010999,2]
[335686459,1724429447543,-512.75,0.00010999,2]
[335686460,1724429447552,-500.0,0.00010999,2]
[335686461,1724429447561,-500.0,0.00010999,2]
[335686462,1724429447570,-500.0,0.00010999,2]
[335686463,1724429447579,-500.0,0.00010999,2]
[335686464,1724429447589,-500.0,0.00010999,2]
[335686465,1724429447598,-500.0,0.00010999,2]
[335686466,1724429447608,-243.24,0.00010999,2]
[335686467,1724429447618,-1303.46,0.00010999,2]
[335686468,1724429447627,-1881.87,0.00010999,2]
[335686469,1724429447637,-1881.87,0.00010999,2]
[335686470,1724429447647,-1303.46,0.00010999,2]
[335686471,1724429447656,-1303.46,0.00010999,2]
[335686472,1724429447666,-1881.87,0.00010999,2]
[335686473,1724429447676,-1303.46,0.00010999,2]
[335686474,1724429447686,-1881.87,0.00010999,2]
[335686475,1724429447695,-1303.46,0.00010999,2]
[335686476,1724429447705,-1881.87,0.00010999,2]
[335686477,1724429447714,-1303.46,0.00010999,2]
[335686478,1724429447724,-1881.87,0.00010999,2]
[335686479,1724429447734,-1303.46,0.00010999,2]
[335686480,1724429447743,-1881.87,0.00010999,2]
[335686481,1724429447752,-1303.46,0.00010999,2]
[335686482,1724429447763,-1303.46,0.00010999,2]
[335686483,1724429447772,-1881.87,0.00010999,2]
[335686484,1724429447782,-1881.87,0.00010999,2]
[335686485,1724429447792,-1303.46,0.00010999,2]
[335686486,1724429447801,-1303.46,0.00010999,2]
[335686487,1724429447810,-1881.87,0.00010999,2]
[335686488,1724429447820,-1303.46,0.00010999,2]
[335686489,1724429447830,-1881.87,0.00010999,2]
[335686490,1724429447840,-1303.46,0.00010999,2]
[335686491,1724429447849,-1881.87,0.00010999,2]
[335686492,1724429447859,-1881.87,0.00010999,2]
[335686493,1724429447869,-1303.46,0.00010999,2]
[335686494,1724429447879,-1881.87,0.00010999,2]
[335686495,1724429447889,-1303.46,0.00010999,2]
[335686496,1724429447899,-1881.87,0.00010999,2]
[335686497,1724429447909,-1881.87,0.00010999,2]
[335686498,1724429447919,-1303.46,0.00010999,2]
[335686499,1724429447929,-1303.46,0.00010999,2]
[335686500,1724429447939,-1881.87,0.00010999,2]
[335686501,1724429447949,-1303.46,0.00010999,2]
[335686502,1724429447959,-1881.87,0.00010999,2]
[335686503,1724429447969,-1303.46,0.00010999,2]
[335686504,1724429447979,-1881.98999999,0.00010999,2]
[335686505,1724429447989,-1303.67000001,0.00010999,2]
[335686506,1724429447999,-500.0,0.00010999,2]
[335686507,1724429448009,-500.0,0.00010999,2]
[335686508,1724429448019,-500.0,0.00010999,2]
[335686509,1724429448028,-500.0,0.00010999,2]
[335686510,1724429448039,-514.72649647,0.00010999,2]
[335686511,1724429448049,-500.0,0.00010999,2]
[335686512,1724429448059,-500.0,0.00010999,2]
[335686513,1724429448069,-500.0,0.00010999,2]
[335686514,1724429448079,-500.0,0.00010999,2]
[335686515,1724429448089,-500.0,0.00010999,2]
[335686516,1724429448098,-500.0,0.00010999,2]
[335686517,1724429448108,-500.0,0.00010999,2]
[335686518,1724429448118,-500.0,0.00010999,2]
[335686519,1724429448128,-500.0,0.00010999,2]
[335686520,1724429448138,-500.0,0.00010999,2]
[335686521,1724429448147,-500.0,0.00010999,2]
[335686522,1724429448157,-467.36,0.00010999,2]
[335686523,1724429448167,-500.0,0.00010999,2]
[335686524,1724429448177,-500.0,0.00010999,2]
[335686525,1724429448188,-500.0,0.00010999,2]
[335686526,1724429448198,-500.0,0.00010999,2]
[335686527,1724429448208,-500.0,0.00010999,2]
[335686528,1724429448219,-500.0,0.00010999,2]
[335686529,1724429448228,-500.0,0.00010999,2]
[335686530,1724429448239,-436.69,0.00010999,2]
[335686531,1724429448249,-500.0,0.00010999,2]
[335686532,1724429448258,-626.85,0.00010999,2]
[335686533,1724429448268,-500.0,0.00010999,2]
[335686534,1724429448279,-626.85,0.00010999,2]
[335686535,1724429448291,-500.0,0.00010999,2]
[335686536,1724429448301,-500.0,0.00010999,2]
[335686537,1724429448311,-626.85,0.00010999,2]
[335686538,1724429448322,-500.0,0.00010999,2]
[335686539,1724429448333,-500.0,0.00010999,2]
[335686540,1724429448348,-626.85,0.00010999,2]
[335686541,1724429448358,-500.0,0.00010999,2]
[335686542,1724429448368,-500.0,0.00010999,2]
[335686543,1724429448379,-500.0,0.00010999,2]
[335686544,1724429448389,-626.85,0.00010999,2]
[335686545,1724429448399,-500.0,0.00010999,2]
[335686546,1724429448409,-626.85,0.00010999,2]
[335686547,1724429448419,-626.85,0.00010999,2]
[335686548,1724429448429,-500.0,0.00010999,2]
[335686549,1724429448441,-626.85,0.00010999,2]
[335686550,1724429448451,-576.8,0.00010999,2]
[335686551,1724429448461,-626.85,0.00010999,2]
[335686552,1724429448472,-626.85,0.00010999,2]
[335686553,1724429448481,-626.85,0.00010999,2]
[335686554,1724429448491,-626.85,0.00010999,2]
[335686555,1724429448501,-626.85,0.00010999,2]
[335686556,1724429448510,-626.85,0.00010999,2]
[335686557,1724429448520,-626.85,0.00010999,2]
[335686558,1724429448530,-626.85,0.00010999,2]
[335686559,1724429448539,-626.85,0.00010999,2]
[335686560,1724429448549,-500.0,0.00010999,2]
[335686561,1724429448559,-626.85,0.00010999,2]
[335686562,1724429448569,-500.0,0.00010999,2]
[335686563,1724429448579,-626.85,0.00010999,2]
[335686564,1724429448589,-500.0,0.00010999,2]
[335686565,1724429448599,-626.85,0.00010999,2]
[335686566,1724429448608,-500.0,0.00010999,2]
[335686567,1724429448619,-626.85,0.00010999,2]
[335686568,1724429448781,-500.0,0.00010999,2]
[335686569,1724429448791,-626.85,0.00010999,2]
[335686570,1724429448802,-500.0,0.00010999,2]
[335686571,1724429448811,-626.85,0.00010999,2]
[335686572,1724429448821,-500.0,0.00010999,2]
[335686573,1724429448831,-500.0,0.00010999,2]
[335686574,1724429448841,-500.0,0.00010999,2]
[335686575,1724429448851,-627.05,0.00010999,2]
[335686576,1724429448862,-500.0,0.00010999,2]
[335686577,1724429448872,-500.0,0.00010999,2]
[335686578,1724429448882,-500.0,0.00010999,2]
[335686579,1724429448892,-500.0,0.00010999,2]
[335686580,1724429448901,-500.0,0.00010999,2]
[335686581,1724429448911,-500.0,0.00010999,2]
[335686582,1724429448921,-500.0,0.00010999,2]
[335686583,1724429448931,-500.0,0.00010999,2]
[335686584,1724429448945,-500.0,0.00010999,2]
[335686585,1724429448954,-500.0,0.00010999,2]
[335686586,1724429448964,-440.95,0.00010999,2]
[335686587,1724429448974,-500.0,0.00010999,2]
[335686588,1724429448983,-500.0,0.00010999,2]
[335686589,1724429448992,-500.0,0.00010999,2]
[335686590,1724429449006,-500.0,0.00010999,2]
[335686591,1724429449020,-500.0,0.00010999,2]
[335686592,1724429449031,-500.0,0.00010999,2]
[335686593,1724429449042,-500.0,0.00010999,2]
[335686594,1724429449052,-500.0,0.00010999,2]
[335686595,1724429449061,-806.42,0.00010999,2]
[335686596,1724429449070,-500.0,0.00010999,2]
[335686597,1724429449080,-806.42,0.00010999,2]
[335686598,1724429449090,-500.0,0.00010999,2]
[335686599,1724429449100,-806.42,0.00010999,2]
[335686600,1724429449110,-500.0,0.00010999,2]
[335686601,1724429449119,-666.1,0.00010999,2]
[335686602,1724429449129,-806.42,0.00010999,2]
[335686603,1724429449138,-369.03,0.00010999,2]
[335686604,1724429449147,-666.1,0.00010999,2]
[335686605,1724429449157,-806.42,0.00010999,2]
[335686606,1724429449166,-666.1,0.00010999,2]
[335686607,1724429449175,-806.42,0.00010999,2]
[335686608,1724429449186,-666.1,0.00010999,2]
[335686609,1724429449195,-806.42,0.00010999,2]
[335686610,1724429449204,-806.42,0.00010999,2]
[335686611,1724429449213,-666.1,0.00010999,2]
[335686612,1724429449223,-806.42,0.00010999,2]
[335686613,1724429449232,-666.1,0.00010999,2]
[335686614,1724429449242,-806.42,0.00010999,2]
[335686615,1724429449251,-666.1,0.00010999,2]
[335686616,1724429449260,-806.42,0.00010999,2]
[335686617,1724429449270,-666.1,0.00010999,2]
[335686618,1724429449279,-806.42,0.00010999,2]
[335686619,1724429449289,-806.42,0.00010999,2]
[335686620,1724429449301,-666.1,0.00010999,2]
[335686621,1724429449310,-806.42,0.00010999,2]
[335686622,1724429449319,-576.93,0.00010999,2]
[335686623,1724429449329,-666.1,0.00010999,2]
[335686624,1724429449341,-806.42,0.00010999,2]
[335686625,1724429449351,-576.93,0.00010999,2]
[335686626,1724429449359,-666.1,0.00010999,2]
[335686627,1724429449369,-806.42,0.00010999,2]
[335686628,1724429449379,-666.1,0.00010999,2]
[335686629,1724429449388,-576.93,0.00010999,2]
[335686630,1724429449398,-812.26,0.00010999,2]
[335686631,1724429449407,-806.42,0.00010999,2]
[335686632,1724429449417,-666.1,0.00010999,2]
[335686633,1724429449427,-576.93,0.00010999,2]
[335686634,1724429449437,-812.26,0.00010999,2]
[335686635,1724429449448,-806.42,0.00010999,2]
[335686636,1724429449458,-666.1,0.00010999,2]
[335686637,1724429449470,-576.93,0.00010999,2]
[335686638,1724429449480,-812.26,0.00010999,2]
[335686639,1724429449490,-806.42,0.00010999,2]
[335686640,1724429449499,-576.93,0.00010999,2]
[335686641,1724429449509,-666.1,0.00010999,2]
[335686642,1724429449518,-812.26,0.00010999,2]
[335686643,1724429449528,-806.42,0.00010999,2]
[335686644,1724429449537,-576.93,0.00010999,2]
[335686645,1724429449546,-666.1,0.00010999,2]
[335686646,1724429449555,-812.26,0.00010999,2]
[335686647,1724429449564,-666.1,0.00010999,2]
[335686648,1724429449573,-812.26,0.00010999,2]
[335686649,1724429449582,-576.93,0.00010999,2]
[335686650,1724429449591,-666.1,0.00010999,2]
[335686651,1724429449600,-812.26,0.00010999,2]
[335686652,1724429449609,-806.42,0.00010999,2]
[335686653,1724429449618,-576.93,0.00010999,2]
[335686654,1724429449627,-666.1,0.00010999,2]
[335686655,1724429449636,-812.26,0.00010999,2]
[335686656,1724429449645,-806.42,0.00010999,2]
[335686657,1724429449654,-812.26,0.00010999,2]
[335686658,1724429449663,-666.1,0.00010999,2]
[335686659,1724429449672,-576.93,0.00010999,2]
[335686660,1724429449681,-806.49,0.00010999,2]
[335686661,1724429449692,-812.26,0.00010999,2]
[335686662,1724429449701,-576.93,0.00010999,2]
[335686663,1724429449710,-812.26,0.00010999,2]
[335686664,1724429449720,-576.93,0.00010999,2]
[335686665,1724429449729,-812.26,0.00010999,2]
[335686666,1724429449738,-576.93,0.00010999,2]
[335686667,1724429449748,-576.93,0.00010999,2]
[335686668,1724429449757,-812.26,0.00010999,2]
[335686669,1724429449766,-576.93,0.00010999,2]
[335686670,1724429449775,-812.26,0.00010999,2]
[335686671,1724429449784,-812.26,0.00010999,2]
[335686672,1724429449793,-500.0,0.00010999,2]
[335686673,1724429449803,-812.26,0.00010999,2]
[335686674,1724429449812,-576.93,0.00010999,2]
[335686675,1724429449821,-500.0,0.00010999,2]
[335686676,1724429449830,-812.26,0.00010999,2]
[335686677,1724429449839,-576.93,0.00010999,2]
[335686678,1724429449849,-500.0,0.00010999,2]
[335686679,1724429449858,-812.26,0.00010999,2]
[335686680,1724429449867,-500.0,0.00010999,2]
[335686681,1724429449876,-648.9,0.00010999,2]
[335686682,1724429449887,-812.47,0.00010999,2]
[335686683,1724429449898,-576.93,0.00010999,2]
[335686684,1724429449908,-576.93,0.00010999,2]
[335686685,1724429449917,-500.0,0.00010999,2]
[335686686,1724429449927,-500.0,0.00010999,2]
[335686687,1724429449937,-500.0,0.00010999,2]
[335686688,1724429449946,-500.0,0.00010999,2]
[335686689,1724429449955,-500.0,0.00010999,2]
[335686690,1724429449965,-500.0,0.00010999,2]
[335686691,1724429449975,-500.0,0.00010999,2]
[335686692,1724429449989,-500.0,0.00010999,2]
[335686693,1724429449999,-500.0,0.00010999,2]
[335686694,1724429450008,-500.0,0.00010999,2]
[335686695,1724429450018,-500.0,0.00010999,2]
[335686696,1724429450031,-500.0,0.00010999,2]
[335686697,1724429450042,-500.0,0.00010999,2]
[335686698,1724429450052,-500.0,0.00010999,2]
[335686699,1724429450063,-500.0,0.00010999,2]
[335686700,1724429450074,-500.0,0.00010999,2]
[335686701,1724429450084,-500.0,0.00010999,2]
[335686702,1724429450093,-500.0,0.00010999,2]
[335686703,1724429450104,-500.0,0.00010999,2]
[335686704,1724429450113,-181799.29800762,0.00011,2]
[335686705,1724429450779,-1575.43818511,0.00010888,2]
[335686706,1724429450797,-97.56181489,0.00010888,2]
[335686707,1724429450806,-199.92529696,0.00010999,2]
[335686708,1724429450817,-300.07470304,0.00010999,2]
[335686709,1724429450826,-474.24,0.00010999,2]
[335686710,1724429450835,-500.0,0.00010999,2]
[335686711,1724429450844,-500.0,0.00010999,2]
[335686712,1724429450853,-500.0,0.00010999,2]
[335686713,1724429450862,-500.0,0.00010999,2]
[335686714,1724429450871,-500.0,0.00010999,2]
[335686715,1724429450880,-500.0,0.00010999,2]
[335686716,1724429450889,-500.0,0.00010999,2]
[335686717,1724429450899,-419.21,0.00010999,2]
[335686718,1724429450908,-291.55539696,0.00011,2]
[335686719,1724429450919,-1257.43565756,0.00011,2]
[335686720,1724429450930,-531.06930366,0.00011,2]
[335686721,1724429450944,-2334.38256631,0.00011,2]
[335686722,1724429451210,-155.0,0.0001089,2]
[335686723,1724429451219,-1592.224248,0.00011,2]
[335686724,1724429451735,-12027.1346,0.00011,2]
[335686725,1724429451747,-2110.66568425,0.00011,2]
[335686726,1724429451902,-8479.63585047,0.00011,2]
[335686727,1724429451923,-1540.0000006,0.00011,2]
[335686728,1724429451935,-6006.0,0.00011,2]
[335686729,1724429452350,-660480.53069275,0.00011,2]
[335686730,1724429452370,-648.45221928,0.00011,2]
[335686731,1724429452395,3976.75629573,9.97e-05,2]
[335686732,1724429452415,8331.12190427,9.97e-05,2]
[335686733,1724429452497,-13885.00257586,0.00011,2]
[335686734,1724429452532,-260.0,0.00011,2]
[335686735,1724429453014,500.0,0.00027,120]
[335686736,1724429453048,500.0,0.00027,120]
[335686737,1724429462506,600.0,8.22e-05,2]
[335686738,1724429462753,500.0,0.00027,120]
[335686739,1724429464145,600.0,9.59e-05,2]
[335686740,1724429470783,500.0,0.00027,120]
[335686741,1724429478306,500.0,0.00027,120]
[335686742,1724429485755,500.0,0.00027,120]
[335686743,1724429494633,251.51,0.00027,120]
[335686744,1724429495353,468.87809573,8.22e-05,2]
[335686745,1724429495373,231.12190427,8.22e-05,2]
[335686746,1724429496949,700.0,9.59e-05,2]
[335686747,1724429501946,416.77,0.00027,120]
[335686748,1724429524218,500.0,8.275e-05,2]
[335686751,1724429561003,2000.0,0.00027,120]
[335686752,1724429566020,500.0,8.275e-05,2]
[335686753,1724429566664,500.0,8.275e-05,2]
[335686754,1724429566997,500.0,8.275e-05,2]
[335686755,1724429567327,500.0,8.275e-05,2]
[335686756,1724429567995,500.0,8.275e-05,2]
[335686757,1724429568346,500.0,8.275e-05,2]
[335686758,1724429604880,1000.0,0.00027,120]
[335686759,1724429605199,1000.0,0.00027,120]
[335686760,1724429605621,434.60721071,8.275e-05,2]
[335686761,1724429606834,8000.0,0.00027,120]
[335686762,1724429610410,4321.66459626,8.275e-05,2]
[335686763,1724429628352,812.60628876,8.275e-05,2]
[335686764,1724429628372,459.30125921,8.275e-05,2]
[335686765,1724429640315,500.0,0.00027,120]
[335686766,1724429665130,200.0,0.00027,120]
[335686767,1724429714020,3877.48994874,0.00010009,2]
[335686768,1724429759448,485.15804996,0.00010009,2]
[335686769,1724429766694,182.01298739,0.00010009,2]
[335686770,1724429767271,542.51258823,0.00010009,2]
[335686771,1724429774872,413.4282629,0.00010009,2]
[335686772,1724429790684,160.46,9.965e-05,2]
[335686773,1724429792440,170.6347928,0.00010009,2]
[335686774,1724429795732,300.23953365,0.00010009,2]
[335686775,1724429802936,500.0,0.00010009,2]
[335686776,1724429825129,264.6397361,0.00010009,2]
[335686777,1724429825719,300.23953365,0.00010009,2]
[335686778,1724429831622,259.65,9.961e-05,2]
[335686779,1724429844309,250.0,9.95e-05,2]
[335686780,1724429856192,162.67323732,0.00010009,2]
[335686781,1724429884208,281.06,8.219e-05,2]
[335686782,1724429936697,1258.20462876,9.962e-05,2]
[335686783,1724429936778,1000.0,0.00027,120]
[335686784,1724429937263,108396.24113849,0.00027,120]
[335686785,1724429971184,201513.00716158,0.00025,60]
[335686786,1724429995171,226.23452389,0.00025,60]
[335686787,1724430045689,132.29544129,0.0001,2]
[335686788,1724430045709,67.70455871,0.0001,2]
[335686789,1724430065428,1148.36,9.943e-05,2]
[335686790,1724430083652,300.0,0.00025,60]
[335686792,1724430095716,8783.93544129,9.925e-05,2]
[335686793,1724430095741,10000.0,9.925e-05,2]
[335686794,1724430095763,5116.06455871,9.925e-05,2]
[335686795,1724430160622,626.48,9.924e-05,2]
[335686796,1724430276095,4257.45544129,0.00010009,2]
[335686797,1724430276116,5022.25190481,0.00010009,2]
[335686798,1724430287295,4977.74809519,0.00010009,2]
[335686799,1724430287318,5165.53762292,0.00010009,2]
[335686800,1724430308945,500.0,0.00010009,2]
[335686802,1724430320692,181.89001011,0.00010009,2]
[335686803,1724430321419,523.93623685,0.00010009,2]
[335686804,1724430338266,485.77175334,0.00010009,2]
[335686806,1724430404938,500.0,0.00010009,2]
[335686809,1724430431265,150.0,9.888e-05,2]
[335686811,1724430447861,2492.86437678,9.871e-05,2]
[335686812,1724430447883,2155.88562322,9.871e-05,2]
[335686813,1724430456483,1350.0,0.00010009,2]
[335686814,1724430456953,267.0,8.219e-05,2]
[335686815,1724430484530,2388.5951406,0.00010009,2]
[335686817,1724430511954,3792.8884818,0.00010009,2]
[335686819,1724430519028,45.63075438,9.892e-05,2]
[335686820,1724430519049,109.12924562,9.892e-05,2]
[335686823,1724430523104,3253.04929955,9.926e-05,2]
[335686831,1724430540938,500.0,0.00010009,2]
[335686837,1724430552687,2505.08172549,0.00010009,2]
[335686838,1724430554609,489.48,9.993e-05,2]
[335686839,1724430555942,500.0,0.00010009,2]
[335686856,1724430566425,2643.25972934,9.997e-05,2]
[335686857,1724430566447,7489.13127066,9.997e-05,2]
[335686874,1724430582217,150.0,9.93e-05,2]
[335686875,1724430582238,150.0,9.93e-05,2]
[335686876,1724430582259,2510.86872934,9.93e-05,2]
[335686877,1724430582281,331.75127066,9.93e-05,2]
[335686878,1724430599764,1727.03218579,0.00025,60]
[335686879,1724430623437,810.73202986,9.997e-05,2]
[335686880,1724430623637,155.0,0.00010009,2]
[335686881,1724430628420,810.73202985,9.998e-05,2]
[335686885,1724430632015,-1397.45840494,0.00010026,2]
[335686886,1724430632026,-155.43150912,0.00010097,2]
[335686887,1724430632037,-150.0,0.00010099,2]
[335686888,1724430632048,-5197.48182588,0.000101,2]
[335686889,1724430632071,-355.41834579,0.000101,2]
[335686890,1724430632085,-73572.76094215,0.000101,2]
[335686891,1724430632130,-46901.97723011,0.000101,2]
[335686892,1724430632140,-267.0,0.0001047,2]
[335686893,1724430632150,-1074.88726643,0.00010566,2]
[335686894,1724430632160,-1429.69935382,0.000106,2]
[335686895,1724430632170,-419.50258882,0.00010713,2]
[335686896,1724430632179,-433.13438347,0.00010713,2]
[335686897,1724430632189,-499.99,0.00010799,2]
[335686898,1724430632199,-260.39879964,0.00010799,2]
[335686899,1724430632209,-12316.28111925,0.000108,2]
[335686900,1724430632220,-684.22027289,0.000108,2]
[335686901,1724430632231,-159.56617666,0.00010852,2]
[335686902,1724430632241,-1741.37556008,0.00010852,2]
[335686903,1724430632250,-600.74422133,0.00010852,2]
[335686904,1724430632260,-439.82643007,0.00010852,2]
[335686905,1724430632270,-365.80180037,0.00010852,2]
[335686906,1724430632280,-342.47692814,0.00010852,2]
[335686907,1724430632291,-164.37927092,0.00010861,2]
[335686908,1724430632301,-287.17126109,0.00010861,2]
[335686909,1724430632310,-206.04295958,0.00010861,2]
[335686910,1724430632319,-155.0,0.00010861,2]
[335686911,1724430632328,-213.8629983,0.00010862,2]
[335686912,1724430632339,-298.80085922,0.00010862,2]
[335686913,1724430632348,-7125.38326111,0.00010879,2]
[335686914,1724430632357,-219932.77584269,0.0001088,2]
[335686915,1724430632379,-1765.30034146,0.0001088,2]
[335686916,1724430632389,-1127.61331614,0.0001088,2]
[335686917,1724430632401,-4819.07995258,0.0001088,2]
[335686918,1724430632412,-7550.02200358,0.0001088,2]
[335686919,1724430632423,-276724.15872618,0.0001088,2]
[335686921,1724430633399,810.73202985,9.999e-05,2]
[335686922,1724430637946,-2364.01451426,0.0001088,2]
[335686923,1724430637958,-724.97184001,0.0001088,2]
[335686924,1724430638002,-421.78588728,0.0001088,2]
[335686925,1724430638013,-869.20538448,0.0001088,2]
[335686926,1724430638024,-11129.9312,0.0001088,2]
[335686927,1724430638035,-2603.10643675,0.0001088,2]
[335686928,1724430638061,-19074.73857867,0.0001088,2]
[335686929,1724430638072,-4552.71630607,0.0001088,2]
[335686930,1724430638083,-32073.67906337,0.0001088,2]
[335686931,1724430638174,-1290.50660228,0.0001088,2]
[335686932,1724430638186,-1020.43866207,0.0001088,2]
[335686933,1724430638231,-425.4,0.0001088,2]
[335686934,1724430638243,-2709.48663959,0.0001088,2]
[335686935,1724430638254,-435.27073833,0.0001088,2]
[335686936,1724430638293,-756.50129239,0.0001088,2]
[335686937,1724430638304,-1393.41253977,0.0001088,2]
[335686938,1724430638315,-1559.04212574,0.0001088,2]
[335686948,1724430640257,-2074.542965,0.0001088,2]
[335687021,1724430643062,-5979.84278337,0.0001088,2]
[335687023,1724430643073,-368.12227721,0.0001088,2]
[335687025,1724430643084,-17249.69636045,0.0001088,2]
[335687028,1724430643095,-2248.95674392,0.0001088,2]
[335687030,1724430643106,-1377.53454,0.0001088,2]
[335687032,1724430643122,-265.9966997,0.0001088,2]
[335687047,1724430643287,-2551.14997692,0.0001088,2]
[335687049,1724430643302,-894.83574998,0.0001088,2]
[335687051,1724430643345,-3972.09929284,0.0001088,2]
[335687052,1724430643357,-614.29174979,0.0001088,2]
[335687053,1724430643368,-8823.99346952,0.0001088,2]
[335687054,1724430643384,-343.73297685,0.0001088,2]
[335687071,1724430645929,-178.33996527,0.00010862,2]
[335687073,1724430645939,-6194.09443993,0.0001088,2]
[335687074,1724430645950,-611.804,0.0001088,2]
[335687075,1724430645994,-592.20419882,0.0001088,2]
[335687076,1724430646005,-587.78019084,0.0001088,2]
[335687077,1724430646052,-1040.67985396,0.0001088,2]
[335687078,1724430646110,-403.53386833,0.0001088,2]
[335687079,1724430646122,-530.6,0.0001088,2]
[335687080,1724430646134,-4371.808,0.0001088,2]
[335687081,1724430646173,-1869.3662922,0.0001088,2]
[335687082,1724430646190,-20808.42054614,0.0001088,2]
[335687083,1724430646230,-1321.4022825,0.0001088,2]
[335687084,1724430646241,-2394.74835214,0.0001088,2]
[335687085,1724430650164,1000.0,0.00010007,2]
[335687087,1724430684889,313.24,9.98e-05,2]
[335687089,1724430736343,318.553,9.997e-05,2]
[335687090,1724430737015,500.0,0.00010007,2]
[335687099,1724430832958,500.0,0.00010007,2]
[335687100,1724430863345,193.49,9.952e-05,2]
[335687103,1724430940472,1406.83,9.943e-05,2]
[335687107,1724431030292,165.7,9.898e-05,2]
[335687108,1724431215792,270.62814649,0.00010009,2]
[335687109,1724431220262,156.62,9.889e-05,2]
[335687110,1724431232400,200.0,9.903e-05,2]
[335687111,1724431233977,2055.99149329,9.903e-05,2]
[335687112,1724431234000,10000.0,9.903e-05,2]
[335687113,1724431234020,2683.94850671,9.903e-05,2]
[335687114,1724431237000,1050.0,0.0001,2]
[335687115,1724431247942,6266.05149329,0.00010009,2]
[335687116,1724431247963,10000.0,0.00010009,2]
[335687117,1724431247983,10000.0,0.00010009,2]
[335687118,1724431248003,9475.93605102,0.00010009,2]
[335687119,1724431249994,524.06394898,9.997e-05,2]
[335687120,1724431250014,161.13574861,9.997e-05,2]
[335687121,1724431300215,274.4,8.219e-05,2]
[335687122,1724431300890,380.32741541,0.00010009,2]
[335687123,1724431315027,402.70348385,0.00010009,2]
[335687124,1724431337633,1500.0,0.00025,60]
[335687125,1724431345025,402.70348385,0.00010009,2]
[335687126,1724431380796,155.0,0.00010009,2]
[335687127,1724431401020,500.0,0.00010009,2]
[335687128,1724431411017,500.0,0.00010009,2]
[335687129,1724431424223,528.82499626,0.00010009,2]
[335687130,1724431433669,6694.90487202,0.00010009,2]
[335687131,1724431433689,2584.80247408,0.00010009,2]
[335687132,1724431445699,712.47186453,0.00025,90]
[335687133,1724431489456,2000.0,0.00025,60]
[335687134,1724431508068,593.72655377,0.00025,90]
[335687135,1724431520657,240.86,9.88e-05,2]
[335687136,1724431532513,1442.53,0.00025,60]
[335687137,1724431634776,150.0,9.888e-05,2]
[335687142,1724431726857,840.0,9.877e-05,2]
[335687143,1724431729788,2473.58430273,9.888e-05,2]
[335687144,1724431731523,3710.75322319,9.888e-05,2]
[335687145,1724431731545,10000.0,9.888e-05,2]
[335687146,1724431731566,4549.0943312,9.888e-05,2]
[335687147,1724431746171,455.44624217,9.888e-05,2]
[335687152,1724431748712,201.21538961,9.888e-05,2]
[335687325,1724431761894,2505.08172549,0.00010009,2]
[335687326,1724431770514,1813.17,9.851e-05,2]